[Event "Live Chess"]
[Site "Chess.com"]
[Date "2023.05.21"]
[Round "-"]
[White "f4nomore"]
[Black "friarnator"]
[Result "0-1"]
[WhiteElo "1415"]
[BlackElo "2000"]
[TimeControl "300"]
[EndTime "0:28:03 PDT"]
[Termination "friarnator won on time"]

1. d4 {[%clk 0:04:57.3]} 1... Nf6 {[%clk 0:04:58]} 2. Bg5 {[%clk 0:04:54.4]}
2... Ne4 {[%clk 0:04:54.9]} 3. Bh4 {[%clk 0:04:52.9]} 3... c5 {[%clk 0:04:54.3]}
4. c3 {[%clk 0:04:49]} 4... Qb6 {[%clk 0:04:52.7]} 5. Nf3 {[%clk 0:04:43.3]}
5... Qxb2 {[%clk 0:04:51]} 6. Qd3 {[%clk 0:04:22.3]} 6... d5 {[%clk 0:04:30.1]}
7. dxc5 {[%clk 0:04:10.8]} 7... Qxa1 {[%clk 0:04:23.9]} 8. Nd2 {[%clk
0:04:08.8]} 8... Qxa2 {[%clk 0:04:14.3]} 9. Qb5+ {[%clk 0:03:44.9]} 9... Nc6
{[%clk 0:04:08.1]} 10. f3 {[%clk 0:03:33.7]} 10... Nxc3 {[%clk 0:04:05.5]} 11.
Nxc3 {[%clk 0:03:28.3]} 11... Qa1+ {[%clk 0:03:39.7]} 12. Nd1 {[%clk 0:03:00.4]}
12... a6 {[%clk 0:03:32.8]} 13. Qd3 {[%clk 0:02:52.8]} 13... e6 {[%clk
0:03:31.6]} 14. g4 {[%clk 0:02:42]} 14... Bxc5 {[%clk 0:03:29.5]} 15. e3 {[%clk
0:02:29.8]} 15... O-O {[%clk 0:03:21.2]} 16. Be2 {[%clk 0:02:28.4]} 16... Nb4
{[%clk 0:03:19.2]} 17. Qc3 {[%clk 0:02:18.7]} 17... Qxc3 {[%clk 0:03:14.5]} 18.
Nxc3 {[%clk 0:02:15.2]} 18... Bxe3 {[%clk 0:03:14.4]} 19. Bf2 {[%clk 0:02:09.9]}
19... Bc5 {[%clk 0:03:14.3]} 20. Bxc5 {[%clk 0:02:07.6]} 20... Kh8 {[%clk
0:03:14.2]} 21. Bxf8 {[%clk 0:02:00.8]} 21... Bd7 {[%clk 0:03:10.7]} 22. Bxb4
{[%clk 0:01:56.7]} 22... b5 {[%clk 0:03:02.1]} 23. O-O {[%clk 0:01:54]} 23... a5
{[%clk 0:02:57.8]} 24. Ba3 {[%clk 0:01:51.7]} 24... b4 {[%clk 0:02:56.5]} 25.
Bxb4 {[%clk 0:01:50.2]} 25... axb4 {[%clk 0:02:56.4]} 26. Nd1 {[%clk 0:01:40.6]}
26... Ra2 {[%clk 0:02:54.8]} 27. Nb3 {[%clk 0:01:15.9]} 27... Rxe2 {[%clk
0:02:52.5]} 28. Nc5 {[%clk 0:01:14.1]} 28... Bb5 {[%clk 0:02:49.9]} 29. Nf2
{[%clk 0:00:55.4]} 29... h6 {[%clk 0:02:44.7]} 30. Rb1 {[%clk 0:00:43.7]} 30...
Rc2 {[%clk 0:02:43]} 31. Nfd3 {[%clk 0:00:31]} 31... Rc3 {[%clk 0:02:37.2]} 32.
Rxb4 {[%clk 0:00:23.9]} 32... Bxd3 {[%clk 0:02:35.2]} 33. Rb8+ {[%clk
0:00:20.1]} 33... Kh7 {[%clk 0:02:33.8]} 34. Nd7 {[%clk 0:00:17.7]} 34... g6
{[%clk 0:02:27.8]} 35. Ne5 {[%clk 0:00:13.5]} 35... f6 {[%clk 0:02:13.3]} 36.
Rb7+ {[%clk 0:00:10.6]} 36... Kg8 {[%clk 0:02:11.5]} 37. Rb8+ {[%clk 0:00:03.3]}
37... Kg7 {[%clk 0:02:08.8]} 38. Rb7+ {[%clk 0:00:01.7]} 38... Kf8 {[%clk
0:02:08]} 0-1

[Event "Live Chess"]
[Site "Chess.com"]
[Date "2023.05.21"]
[Round "-"]
[White "Tushinskiy"]
[Black "BostonStrangler"]
[Result "1-0"]
[WhiteElo "2181"]
[BlackElo "2057"]
[TimeControl "300"]
[EndTime "0:28:26 PDT"]
[Termination "Tushinskiy won on time"]

1. d4 {[%clk 0:04:53.2]} 1... Nf6 {[%clk 0:04:58.5]} 2. c3 {[%clk 0:04:53.1]}
2... g6 {[%clk 0:04:55.3]} 3. Nf3 {[%clk 0:04:53]} 3... Bg7 {[%clk 0:04:54.3]}
4. Bf4 {[%clk 0:04:52.5]} 4... d6 {[%clk 0:04:53.8]} 5. Bg3 {[%clk 0:04:52.4]}
5... O-O {[%clk 0:04:52.3]} 6. Nbd2 {[%clk 0:04:52.3]} 6... Nc6 {[%clk
0:04:51.1]} 7. e4 {[%clk 0:04:51.7]} 7... e5 {[%clk 0:04:49.8]} 8. dxe5 {[%clk
0:04:51.6]} 8... dxe5 {[%clk 0:04:48.6]} 9. Qc2 {[%clk 0:04:50.8]} 9... Qe7
{[%clk 0:04:44.9]} 10. Be2 {[%clk 0:04:49.8]} 10... Nh5 {[%clk 0:04:40.7]} 11.
O-O {[%clk 0:04:48.6]} 11... Nf4 {[%clk 0:04:39.7]} 12. Bxf4 {[%clk 0:04:43.8]}
12... exf4 {[%clk 0:04:38.9]} 13. h3 {[%clk 0:04:42.7]} 13... h6 {[%clk
0:04:36.2]} 14. Rfe1 {[%clk 0:04:41.4]} 14... g5 {[%clk 0:04:35.1]} 15. Nh2
{[%clk 0:04:37.2]} 15... f5 {[%clk 0:04:28.2]} 16. exf5 {[%clk 0:04:34.3]} 16...
Bxf5 {[%clk 0:04:26.7]} 17. Bc4+ {[%clk 0:04:33]} 17... Kh8 {[%clk 0:04:18.1]}
18. Rxe7 {[%clk 0:04:28.2]} 18... Bxc2 {[%clk 0:04:15.7]} 19. Rxc7 {[%clk
0:04:26.7]} 19... Rad8 {[%clk 0:04:11.4]} 20. Ndf3 {[%clk 0:04:24.9]} 20... Ne5
{[%clk 0:04:02.6]} 21. Nxe5 {[%clk 0:04:22.8]} 21... Bxe5 {[%clk 0:04:01.3]} 22.
Rxb7 {[%clk 0:04:20.6]} 22... Rb8 {[%clk 0:03:59.1]} 23. Rxb8 {[%clk 0:04:11.4]}
23... Rxb8 {[%clk 0:03:57.5]} 24. Nf3 {[%clk 0:04:10.8]} 24... Bf6 {[%clk
0:03:52.6]} 25. b3 {[%clk 0:04:08.4]} 25... Rd8 {[%clk 0:03:41.3]} 26. Rc1
{[%clk 0:04:05.2]} 26... Rd1+ {[%clk 0:03:35.4]} 27. Rxd1 {[%clk 0:04:03.6]}
27... Bxd1 {[%clk 0:03:35.3]} 28. Nd4 {[%clk 0:04:02.4]} 28... Kg7 {[%clk
0:03:27.7]} 29. Kf1 {[%clk 0:04:01]} 29... Bxd4 {[%clk 0:03:20.4]} 30. cxd4
{[%clk 0:03:59.7]} 30... Kf6 {[%clk 0:03:19]} 31. Ke1 {[%clk 0:03:58.5]} 31...
Bc2 {[%clk 0:03:17.7]} 32. Kd2 {[%clk 0:03:55.5]} 32... Bb1 {[%clk 0:03:16.6]}
33. a4 {[%clk 0:03:53.9]} 33... Be4 {[%clk 0:03:15.2]} 34. f3 {[%clk 0:03:52.9]}
34... Bf5 {[%clk 0:03:08.2]} 35. Kc3 {[%clk 0:03:51.5]} 35... h5 {[%clk
0:03:06.9]} 36. b4 {[%clk 0:03:48.9]} 36... g4 {[%clk 0:03:05.5]} 37. hxg4
{[%clk 0:03:48.8]} 37... hxg4 {[%clk 0:03:04.4]} 38. b5 {[%clk 0:03:47.2]} 38...
g3 {[%clk 0:02:55.2]} 39. Kb4 {[%clk 0:03:43.9]} 39... Bc8 {[%clk 0:02:42.7]}
40. Kc5 {[%clk 0:03:39.6]} 40... Bb7 {[%clk 0:02:38.3]} 41. d5 {[%clk
0:03:38.3]} 41... Ke5 {[%clk 0:02:29.6]} 42. Bd3 {[%clk 0:03:37]} 42... Bxd5
{[%clk 0:02:26.1]} 43. Bf1 {[%clk 0:03:35.6]} 43... Bb7 {[%clk 0:02:13]} 44. a5
{[%clk 0:03:34.3]} 44... Bd5 {[%clk 0:02:10.9]} 45. a6 {[%clk 0:03:31.6]} 45...
Ba8 {[%clk 0:02:03.7]} 46. b6 {[%clk 0:03:26.3]} 46... axb6+ {[%clk 0:02:02.1]}
47. Kxb6 {[%clk 0:03:26.2]} 47... Kd4 {[%clk 0:01:58.9]} 48. a7 {[%clk
0:03:21.3]} 48... Ke3 {[%clk 0:01:55.7]} 49. Bb5 {[%clk 0:03:20.5]} 49... Kf2
{[%clk 0:01:16]} 50. Bc6 {[%clk 0:03:17.5]} 50... Kxg2 {[%clk 0:01:05.5]} 51.
Bxa8 {[%clk 0:03:16.1]} 51... Kh2 {[%clk 0:01:01.8]} 52. Be4 {[%clk 0:03:14.8]}
52... g2 {[%clk 0:01:00.5]} 53. a8=Q {[%clk 0:03:13.8]} 53... g1=Q+ {[%clk
0:00:59.7]} 54. Kc7 {[%clk 0:03:11]} 54... Qg7+ {[%clk 0:00:55.9]} 55. Kb8
{[%clk 0:03:06.4]} 55... Qf8+ {[%clk 0:00:51.5]} 56. Ka7 {[%clk 0:03:05]} 56...
Qa3+ {[%clk 0:00:49.7]} 57. Kb7 {[%clk 0:03:04]} 57... Qe7+ {[%clk 0:00:47.7]}
58. Kc6 {[%clk 0:03:03]} 58... Qf6+ {[%clk 0:00:45]} 59. Kd5 {[%clk 0:03:02]}
59... Qg5+ {[%clk 0:00:41.2]} 60. Kc4 {[%clk 0:02:58.4]} 60... Kg3 {[%clk
0:00:34.8]} 61. Qd5 {[%clk 0:02:54.8]} 61... Qe7 {[%clk 0:00:28.5]} 62. Qc6
{[%clk 0:02:49.3]} 62... Qe5 {[%clk 0:00:24.9]} 63. Qg6+ {[%clk 0:02:43.5]}
63... Kf2 {[%clk 0:00:23.7]} 64. Qb6+ {[%clk 0:02:41.4]} 64... Kg3 {[%clk
0:00:19.3]} 65. Qg1+ {[%clk 0:02:40.2]} 65... Kh3 {[%clk 0:00:16.2]} 66. Qd4
{[%clk 0:02:30.2]} 66... Qc7+ {[%clk 0:00:13.5]} 67. Qc5 {[%clk 0:02:27.9]}
67... Qf7+ {[%clk 0:00:10.5]} 68. Kd4 {[%clk 0:02:26.6]} 68... Qf6+ {[%clk
0:00:07.9]} 69. Qe5 {[%clk 0:02:25.7]} 69... Qh4 {[%clk 0:00:06.6]} 70. Qf5+
{[%clk 0:02:18.4]} 70... Kg3 {[%clk 0:00:05.1]} 71. Qg6+ {[%clk 0:02:16.4]}
71... Kf2 {[%clk 0:00:03.8]} 72. Qb6 {[%clk 0:02:10.2]} 72... Kg3 {[%clk
0:00:01.4]} 73. Kd3 {[%clk 0:02:06.2]} 1-0

[Event "Live Chess"]
[Site "Chess.com"]
[Date "2023.05.21"]
[Round "-"]
[White "tpm07"]
[Black "Biranidun"]
[Result "0-1"]
[WhiteElo "1925"]
[BlackElo "2537"]
[TimeControl "300"]
[EndTime "0:28:30 PDT"]
[Termination "Biranidun won by resignation"]

1. d4 {[%clk 0:04:55.9]} 1... Nf6 {[%clk 0:04:59.1]} 2. Nf3 {[%clk 0:04:54.6]}
2... g6 {[%clk 0:04:58.7]} 3. c4 {[%clk 0:04:52]} 3... Bg7 {[%clk 0:04:58.4]} 4.
Nc3 {[%clk 0:04:51.1]} 4... O-O {[%clk 0:04:57.8]} 5. e4 {[%clk 0:04:49.5]} 5...
d6 {[%clk 0:04:57.7]} 6. Be2 {[%clk 0:04:48.9]} 6... e5 {[%clk 0:04:57.2]} 7. d5
{[%clk 0:04:47.9]} 7... a5 {[%clk 0:04:55.9]} 8. Bg5 {[%clk 0:04:45.4]} 8... h6
{[%clk 0:04:55.2]} 9. Bh4 {[%clk 0:04:44]} 9... Na6 {[%clk 0:04:53.8]} 10. O-O
{[%clk 0:04:25.4]} 10... Bd7 {[%clk 0:04:51.7]} 11. b3 {[%clk 0:04:22.9]} 11...
Nc5 {[%clk 0:04:42.9]} 12. Nd2 {[%clk 0:04:20.5]} 12... Nfxe4 {[%clk 0:04:41.6]}
13. Bxd8 {[%clk 0:04:13.9]} 13... Nxc3 {[%clk 0:04:40.7]} 14. Qe1 {[%clk
0:04:10.1]} 14... Raxd8 {[%clk 0:04:39.3]} 15. Rc1 {[%clk 0:03:29.1]} 15... e4
{[%clk 0:04:38.1]} 16. a3 {[%clk 0:03:21.1]} 16... Rfe8 {[%clk 0:04:36.2]} 17.
b4 {[%clk 0:03:13.7]} 17... axb4 {[%clk 0:04:36.1]} 18. axb4 {[%clk 0:03:12.8]}
18... Nd3 {[%clk 0:04:35.8]} 19. Bxd3 {[%clk 0:03:11.5]} 19... exd3 {[%clk
0:04:35.7]} 20. Ne4 {[%clk 0:02:58.2]} 20... Rxe4 {[%clk 0:04:29.8]} 0-1

[Event "Live Chess"]
[Site "Chess.com"]
[Date "2023.05.21"]
[Round "-"]
[White "NomisY"]
[Black "TKDRyan"]
[Result "1-0"]
[WhiteElo "1550"]
[BlackElo "1140"]
[TimeControl "300"]
[EndTime "0:28:33 PDT"]
[Termination "NomisY won on time"]

1. d4 {[%clk 0:04:56.9]} 1... d5 {[%clk 0:04:58.7]} 2. c4 {[%clk 0:04:55.8]}
2... Nf6 {[%clk 0:04:55.7]} 3. cxd5 {[%clk 0:04:54.4]} 3... Nxd5 {[%clk
0:04:52.5]} 4. e4 {[%clk 0:04:53.5]} 4... Nb6 {[%clk 0:04:50.5]} 5. Nc3 {[%clk
0:04:51.6]} 5... Nc6 {[%clk 0:04:49.1]} 6. Be3 {[%clk 0:04:48.2]} 6... e6 {[%clk
0:04:47.7]} 7. Nf3 {[%clk 0:04:47]} 7... Bb4 {[%clk 0:04:46.1]} 8. Be2 {[%clk
0:04:41.5]} 8... O-O {[%clk 0:04:40.8]} 9. O-O {[%clk 0:04:40.3]} 9... a6 {[%clk
0:04:31.4]} 10. a3 {[%clk 0:04:39]} 10... Bxc3 {[%clk 0:04:25.4]} 11. bxc3
{[%clk 0:04:37.8]} 11... Nd7 {[%clk 0:04:15.8]} 12. a4 {[%clk 0:04:17.6]} 12...
a5 {[%clk 0:04:04]} 13. Bg5 {[%clk 0:02:43.9]} 13... f6 {[%clk 0:04:01.7]} 14.
Be3 {[%clk 0:02:34.9]} 14... b6 {[%clk 0:03:57.7]} 15. Qb3 {[%clk 0:02:19.4]}
15... Qe7 {[%clk 0:03:34.4]} 16. Bc4 {[%clk 0:01:57.9]} 16... Nd8 {[%clk
0:03:31.3]} 17. Rfe1 {[%clk 0:01:41.4]} 17... Kh8 {[%clk 0:03:29.3]} 18. Qc2
{[%clk 0:01:22.8]} 18... Bb7 {[%clk 0:03:27.6]} 19. Rad1 {[%clk 0:01:16.9]}
19... Nf7 {[%clk 0:03:17.2]} 20. Ba2 {[%clk 0:01:01.9]} 20... h6 {[%clk
0:03:15]} 21. Nh4 {[%clk 0:00:45.7]} 21... Qa3 {[%clk 0:02:14]} 22. Ng6+ {[%clk
0:00:39.7]} 22... Kg8 {[%clk 0:02:12.9]} 23. Nxf8 {[%clk 0:00:39]} 23... Rxf8
{[%clk 0:02:12.4]} 24. Bxe6 {[%clk 0:00:38.4]} 24... Kh8 {[%clk 0:01:56.8]} 25.
Bxd7 {[%clk 0:00:36.8]} 25... Ng5 {[%clk 0:01:50.9]} 26. f3 {[%clk 0:00:35.5]}
26... Qe7 {[%clk 0:01:01.3]} 27. Bb5 {[%clk 0:00:34.3]} 27... c6 {[%clk
0:00:50.3]} 28. Bd3 {[%clk 0:00:32.6]} 28... c5 {[%clk 0:00:45.6]} 29. d5 {[%clk
0:00:30.8]} 29... Qd6 {[%clk 0:00:43.3]} 30. Bxg5 {[%clk 0:00:28.8]} 30... fxg5
{[%clk 0:00:41.9]} 31. e5 {[%clk 0:00:27.7]} 31... Qxd5 {[%clk 0:00:39]} 32. Be4
{[%clk 0:00:26.7]} 32... Qf7 {[%clk 0:00:31.2]} 33. Bxb7 {[%clk 0:00:25.2]}
33... Qxb7 {[%clk 0:00:29.9]} 34. e6 {[%clk 0:00:24]} 34... Re8 {[%clk
0:00:29.1]} 35. Rd7 {[%clk 0:00:20.8]} 35... Qc6 {[%clk 0:00:24.7]} 36. Qf5
{[%clk 0:00:16.3]} 36... c4 {[%clk 0:00:18.1]} 37. Qf7 {[%clk 0:00:15.1]} 37...
Rg8 {[%clk 0:00:16.5]} 38. Red1 {[%clk 0:00:10.7]} 38... Qxa4 {[%clk 0:00:11.4]}
39. e7 {[%clk 0:00:08.8]} 39... Qc6 {[%clk 0:00:03.5]} 40. Rd8 {[%clk
0:00:07.3]} 40... Qc5+ {[%clk 0:00:03.4]} 41. Kh1 {[%clk 0:00:06.2]} 1-0

[Event "Live Chess"]
[Site "Chess.com"]
[Date "2023.05.21"]
[Round "-"]
[White "Mikhail_Golubev"]
[Black "Duke_of_Bebington"]
[Result "1-0"]
[WhiteElo "2472"]
[BlackElo "1588"]
[TimeControl "300"]
[EndTime "0:28:46 PDT"]
[Termination "Mikhail_Golubev won by resignation"]

1. Na3 {[%clk 0:04:56.9]} 1... e5 {[%clk 0:04:57.6]} 2. Nc4 {[%clk 0:04:54.5]}
2... Nc6 {[%clk 0:04:55.1]} 3. e4 {[%clk 0:04:53.5]} 3... Nf6 {[%clk 0:04:53]}
4. d3 {[%clk 0:04:49.7]} 4... b5 {[%clk 0:04:34.2]} 5. Ne3 {[%clk 0:04:46.6]}
5... Bb7 {[%clk 0:04:31.1]} 6. Nf3 {[%clk 0:04:44.8]} 6... Bc5 {[%clk
0:04:27.9]} 7. Be2 {[%clk 0:04:38.9]} 7... O-O {[%clk 0:04:26.4]} 8. O-O {[%clk
0:04:36.5]} 8... d6 {[%clk 0:04:23.2]} 9. c3 {[%clk 0:04:34.8]} 9... Bb6 {[%clk
0:04:18.1]} 10. Nf5 {[%clk 0:04:00.8]} 10... Bc8 {[%clk 0:04:05]} 11. Ng3 {[%clk
0:03:53.7]} 11... Ne7 {[%clk 0:03:57.3]} 12. d4 {[%clk 0:03:51.1]} 12... Ng6
{[%clk 0:03:51.5]} 13. dxe5 {[%clk 0:03:48]} 13... Nxe5 {[%clk 0:03:49.3]} 14.
Nxe5 {[%clk 0:03:46.3]} 14... dxe5 {[%clk 0:03:48.9]} 15. Bxb5 {[%clk
0:03:40.4]} 15... Qxd1 {[%clk 0:03:42.9]} 16. Rxd1 {[%clk 0:03:39.3]} 16... Bb7
{[%clk 0:03:42.4]} 17. Re1 {[%clk 0:03:27.5]} 17... Rfd8 {[%clk 0:03:37.9]} 18.
h3 {[%clk 0:03:20.8]} 18... Rd6 {[%clk 0:03:36.7]} 19. a4 {[%clk 0:03:07]} 19...
a5 {[%clk 0:03:30.8]} 20. Nf5 {[%clk 0:02:53.2]} 20... Rdd8 {[%clk 0:03:10.3]}
21. Ng3 {[%clk 0:02:33.3]} 21... Rd6 {[%clk 0:03:05.5]} 22. Be3 {[%clk
0:02:25.4]} 22... Bxe3 {[%clk 0:02:58.7]} 23. Rxe3 {[%clk 0:02:24.7]} 23... Rad8
{[%clk 0:02:56.7]} 24. Rae1 {[%clk 0:02:22.8]} 24... Rd2 {[%clk 0:02:45.1]} 25.
R3e2 {[%clk 0:02:14.7]} 25... Kf8 {[%clk 0:02:29.1]} 26. f3 {[%clk 0:02:09.7]}
26... Ra8 {[%clk 0:02:20.5]} 27. Rxd2 {[%clk 0:02:06.9]} 1-0

[Event "Live Chess"]
[Site "Chess.com"]
[Date "2023.05.21"]
[Round "-"]
[White "quantum_void"]
[Black "LutherSullivan"]
[Result "0-1"]
[WhiteElo "1472"]
[BlackElo "2125"]
[TimeControl "300"]
[EndTime "0:29:06 PDT"]
[Termination "LutherSullivan won by resignation"]

1. e4 {[%clk 0:04:56.7]} 1... e5 {[%clk 0:04:58.4]} 2. Nf3 {[%clk 0:04:55.4]}
2... Nc6 {[%clk 0:04:57.5]} 3. Bb5 {[%clk 0:04:54.2]} 3... a6 {[%clk 0:04:55.8]}
4. Ba4 {[%clk 0:04:53.8]} 4... Nf6 {[%clk 0:04:54.2]} 5. O-O {[%clk 0:04:51.4]}
5... Be7 {[%clk 0:04:52.3]} 6. Re1 {[%clk 0:04:50.1]} 6... b5 {[%clk 0:04:51.7]}
7. Bb3 {[%clk 0:04:49.1]} 7... O-O {[%clk 0:04:51.2]} 8. d3 {[%clk 0:04:48.1]}
8... h6 {[%clk 0:04:49]} 9. h3 {[%clk 0:04:45.9]} 9... d6 {[%clk 0:04:48.1]} 10.
Be3 {[%clk 0:04:45]} 10... Re8 {[%clk 0:04:47]} 11. c3 {[%clk 0:04:38.6]} 11...
Bf8 {[%clk 0:04:45.9]} 12. Nbd2 {[%clk 0:04:35.3]} 12... Ne7 {[%clk 0:04:44.7]}
13. Nh4 {[%clk 0:04:16.1]} 13... d5 {[%clk 0:04:35.8]} 14. Qf3 {[%clk 0:04:12]}
14... Be6 {[%clk 0:04:29.4]} 15. Nf5 {[%clk 0:04:03.7]} 15... dxe4 {[%clk
0:04:10]} 16. Nxe7+ {[%clk 0:03:53.5]} 16... Qxe7 {[%clk 0:04:05.6]} 17. Bxe6
{[%clk 0:03:47.8]} 17... exf3 {[%clk 0:04:00.8]} 0-1

[Event "Live Chess"]
[Site "Chess.com"]
[Date "2023.05.21"]
[Round "-"]
[White "MaximKris"]
[Black "Rusty_Bridges"]
[Result "1-0"]
[WhiteElo "1837"]
[BlackElo "1546"]
[TimeControl "300"]
[EndTime "0:29:18 PDT"]
[Termination "MaximKris won by resignation"]

1. e4 {[%clk 0:04:59.1]} 1... d6 {[%clk 0:04:58.2]} 2. Nf3 {[%clk 0:04:58]} 2...
Nf6 {[%clk 0:04:56.5]} 3. d4 {[%clk 0:04:54.9]} 3... Nbd7 {[%clk 0:04:54.8]} 4.
Nc3 {[%clk 0:04:53.7]} 4... e5 {[%clk 0:04:53.7]} 5. dxe5 {[%clk 0:04:52]} 5...
dxe5 {[%clk 0:04:52.7]} 6. Bc4 {[%clk 0:04:50.6]} 6... h6 {[%clk 0:04:50.8]} 7.
O-O {[%clk 0:04:49.3]} 7... c6 {[%clk 0:04:43.9]} 8. Be3 {[%clk 0:04:47.1]} 8...
Qc7 {[%clk 0:04:42.1]} 9. Qd2 {[%clk 0:04:38.1]} 9... Be7 {[%clk 0:04:39.2]} 10.
Rad1 {[%clk 0:04:32.1]} 10... b5 {[%clk 0:04:36.9]} 11. Bb3 {[%clk 0:04:22.6]}
11... b4 {[%clk 0:04:35.6]} 12. Ne2 {[%clk 0:04:19.6]} 12... Nxe4 {[%clk
0:04:33.9]} 13. Qc1 {[%clk 0:04:18]} 13... O-O {[%clk 0:04:05.5]} 14. Rd3 {[%clk
0:04:17.9]} 14... Nec5 {[%clk 0:04:01.5]} 15. Bxc5 {[%clk 0:04:16.5]} 15... Nxc5
{[%clk 0:03:59.8]} 16. Re3 {[%clk 0:04:15.9]} 16... Nxb3 {[%clk 0:03:57.2]} 17.
cxb3 {[%clk 0:04:15.8]} 17... f6 {[%clk 0:03:55.3]} 18. Qc4+ {[%clk 0:04:13.8]}
18... Kh8 {[%clk 0:03:51.3]} 19. Rc1 {[%clk 0:04:13]} 19... c5 {[%clk
0:03:48.8]} 20. Nh4 {[%clk 0:04:03.4]} 20... Rd8 {[%clk 0:03:07.6]} 21. Ng6+
{[%clk 0:03:55.8]} 21... Kh7 {[%clk 0:03:05]} 22. Nxe7 {[%clk 0:03:53.8]} 22...
Qxe7 {[%clk 0:03:01.4]} 23. Qe4+ {[%clk 0:03:48.1]} 23... f5 {[%clk 0:02:51.9]}
24. Qxa8 {[%clk 0:03:43.5]} 24... Bb7 {[%clk 0:02:50.6]} 25. Qxa7 {[%clk
0:03:33.6]} 25... Rd7 {[%clk 0:02:41.5]} 26. Qxc5 {[%clk 0:03:13.8]} 26... Qg5
{[%clk 0:02:37.1]} 27. Rg3 {[%clk 0:03:02.1]} 27... Qd2 {[%clk 0:02:30.5]} 28.
h3 {[%clk 0:02:48]} 28... Qxe2 {[%clk 0:02:26]} 29. Qxb4 {[%clk 0:02:41.5]}
29... f4 {[%clk 0:02:17.1]} 30. Rgc3 {[%clk 0:01:48.3]} 30... f3 {[%clk
0:01:27.2]} 31. Qg4 {[%clk 0:01:34.3]} 31... Rd1+ {[%clk 0:01:02.2]} 32. Rxd1
{[%clk 0:01:30.4]} 32... Qxd1+ {[%clk 0:01:00.8]} 33. Kh2 {[%clk 0:01:29.3]}
33... fxg2 {[%clk 0:00:57.2]} 34. Qxd1 {[%clk 0:01:27.8]} 1-0

[Event "Live Chess"]
[Site "Chess.com"]
[Date "2023.05.21"]
[Round "-"]
[White "Nazar_777"]
[Black "martynstanley"]
[Result "1-0"]
[WhiteElo "1590"]
[BlackElo "986"]
[TimeControl "300"]
[EndTime "0:29:25 PDT"]
[Termination "Nazar_777 won by checkmate"]

1. e3 {[%clk 0:04:56.4]} 1... e6 {[%clk 0:04:53.9]} 2. h4 {[%clk 0:04:55.1]}
2... d5 {[%clk 0:04:50.2]} 3. a3 {[%clk 0:04:53.9]} 3... c5 {[%clk 0:04:47.9]}
4. c4 {[%clk 0:04:51.9]} 4... Nc6 {[%clk 0:04:44.2]} 5. cxd5 {[%clk 0:04:50.9]}
5... Qxd5 {[%clk 0:04:25.5]} 6. Nf3 {[%clk 0:04:49.4]} 6... b6 {[%clk
0:04:22.4]} 7. Nc3 {[%clk 0:04:48.3]} 7... Qd7 {[%clk 0:04:20.3]} 8. Be2 {[%clk
0:04:47.3]} 8... Bb7 {[%clk 0:04:18.2]} 9. Qc2 {[%clk 0:04:46.1]} 9... O-O-O
{[%clk 0:04:16.2]} 10. b3 {[%clk 0:04:45]} 10... Nf6 {[%clk 0:04:11.2]} 11. Bb2
{[%clk 0:04:43.4]} 11... Nd5 {[%clk 0:04:09.5]} 12. Rc1 {[%clk 0:04:41.9]} 12...
Nxc3 {[%clk 0:04:07.6]} 13. Bxc3 {[%clk 0:04:40.7]} 13... Rg8 {[%clk 0:04:04.2]}
14. Bb5 {[%clk 0:04:39.2]} 14... g6 {[%clk 0:03:58.4]} 15. Ne5 {[%clk
0:04:37.7]} 15... Qc7 {[%clk 0:03:53.6]} 16. Bxc6 {[%clk 0:04:29.4]} 16... Bxc6
{[%clk 0:03:52]} 17. Nxc6 {[%clk 0:04:27.6]} 17... Qxc6 {[%clk 0:03:49.5]} 18.
b4 {[%clk 0:04:26.4]} 18... Qxg2 {[%clk 0:03:39.8]} 19. Rf1 {[%clk 0:04:24.2]}
19... Bd6 {[%clk 0:03:31.6]} 20. bxc5 {[%clk 0:04:17]} 20... Bxc5 {[%clk
0:03:29.2]} 21. Bf6 {[%clk 0:04:11]} 21... Rd5 {[%clk 0:03:23.5]} 22. d4 {[%clk
0:04:08.6]} 22... Qf3 {[%clk 0:03:09.8]} 23. Be5 {[%clk 0:04:05.7]} 23... f6
{[%clk 0:03:04.9]} 24. Bf4 {[%clk 0:04:02.1]} 24... g5 {[%clk 0:03:01.4]} 25.
hxg5 {[%clk 0:03:59]} 25... fxg5 {[%clk 0:02:57]} 26. Bg3 {[%clk 0:03:56.1]}
26... h5 {[%clk 0:02:53.6]} 27. dxc5 {[%clk 0:03:54.8]} 27... Rxc5 {[%clk
0:02:48.8]} 28. Qd2 {[%clk 0:03:53.5]} 28... Qc6 {[%clk 0:02:43.4]} 29. Rxc5
{[%clk 0:03:48.6]} 29... Qxc5 {[%clk 0:02:41.5]} 30. Ke2 {[%clk 0:03:46.7]}
30... Qc4+ {[%clk 0:02:35.7]} 31. Qd3 {[%clk 0:03:43.2]} 31... Qa2+ {[%clk
0:02:33.8]} 32. Qd2 {[%clk 0:03:41.8]} 32... Qxa3 {[%clk 0:02:32]} 33. Rc1+
{[%clk 0:03:40.1]} 33... Kb7 {[%clk 0:02:30]} 34. Rc7+ {[%clk 0:03:33.4]} 34...
Ka6 {[%clk 0:02:10.1]} 35. Qd3+ {[%clk 0:03:30.9]} 35... b5 {[%clk 0:02:02.5]}
36. Qxa3+ {[%clk 0:03:28.8]} 36... Kb6 {[%clk 0:02:00.7]} 37. Qxa7# {[%clk
0:03:27.1]} 1-0